[Event "*** Titled Tuesday Blitz"]
[Site "Chess.com"]
[Date "2021.02.16"]
[Round "4"]
[White "Kaua18"]
[Black "MaevskiyNikolay"]
[Result "0-1"]
[WhiteElo "2360"]
[BlackElo "2531"]
[TimeControl "180+1"]
[EndTime "10:42:10 PST"]
[Termination "MaevskiyNikolay won on time"]

1. e4 {[%clk 0:03:00.8]} 1... Nc6 {[%clk 0:02:58.8]} 2. Nf3 {[%clk 0:03:00.8]}
2... d5 {[%clk 0:02:58.9]} 3. exd5 {[%clk 0:03:00.6]} 3... Qxd5 {[%clk
0:02:59.5]} 4. Nc3 {[%clk 0:02:59.7]} 4... Qa5 {[%clk 0:03:00]} 5. d4 {[%clk
0:02:55.3]} 5... Bg4 {[%clk 0:02:57.8]} 6. Bb5 {[%clk 0:02:46.6]} 6... O-O-O
{[%clk 0:02:57.1]} 7. Bxc6 {[%clk 0:02:37.8]} 7... bxc6 {[%clk 0:02:57.2]} 8. h3
{[%clk 0:02:35]} 8... Qh5 {[%clk 0:02:46.2]} 9. O-O {[%clk 0:02:20.2]} 9... Bxf3
{[%clk 0:02:43.5]} 10. Qxf3 {[%clk 0:02:21.1]} 10... Qxf3 {[%clk 0:02:43.1]} 11.
gxf3 {[%clk 0:02:22]} 11... Rxd4 {[%clk 0:02:43.5]} 12. Be3 {[%clk 0:02:21.8]}
12... Rh4 {[%clk 0:02:36.1]} 13. Bxa7 {[%clk 0:02:20.6]} 13... Rxh3 {[%clk
0:02:35.5]} 14. Kg2 {[%clk 0:02:19.8]} 14... Rh5 {[%clk 0:02:35.5]} 15. Ne4
{[%clk 0:02:19.5]} 15... e6 {[%clk 0:02:32.5]} 16. a4 {[%clk 0:02:18.5]} 16...
Ra5 {[%clk 0:02:28.9]} 17. Bd4 {[%clk 0:02:16.6]} 17... Nf6 {[%clk 0:02:19.6]}
18. c3 {[%clk 0:02:01.3]} 18... Be7 {[%clk 0:02:16.6]} 19. b4 {[%clk 0:02:00.9]}
19... Ra8 {[%clk 0:02:15.2]} 20. a5 {[%clk 0:01:57.2]} 20... Nd5 {[%clk
0:02:13.3]} 21. Rfb1 {[%clk 0:01:36.5]} 21... f6 {[%clk 0:02:12.2]} 22. a6
{[%clk 0:01:23.9]} 22... Nb6 {[%clk 0:01:38.6]} 23. Bc5 {[%clk 0:01:17.8]} 23...
Re8 {[%clk 0:01:34]} 24. Rc1 {[%clk 0:00:59.1]} 24... Nd5 {[%clk 0:01:28.3]} 25.
Ra4 {[%clk 0:00:40.2]} 25... Nf4+ {[%clk 0:01:23.6]} 26. Kf1 {[%clk 0:00:36.4]}
26... Nd3 {[%clk 0:01:22.7]} 27. Rca1 {[%clk 0:00:36.3]} 27... Bxc5 {[%clk
0:01:16.9]} 28. Nxc5 {[%clk 0:00:35.8]} 28... Nxc5 {[%clk 0:01:13.5]} 29. bxc5
{[%clk 0:00:36.7]} 29... Ra7 {[%clk 0:01:13.8]} 30. Ke2 {[%clk 0:00:36.2]} 30...
Rd8 {[%clk 0:01:13.7]} 31. Rd4 {[%clk 0:00:35.1]} 31... Rd5 {[%clk 0:01:10]} 32.
Ra5 {[%clk 0:00:15.7]} 32... Kd7 {[%clk 0:01:06]} 33. Kd3 {[%clk 0:00:15.9]}
33... e5 {[%clk 0:01:02.9]} 34. Rxd5+ {[%clk 0:00:08.2]} 34... cxd5 {[%clk
0:01:03.1]} 35. c4 {[%clk 0:00:05]} 35... Kc6 {[%clk 0:00:57.6]} 36. cxd5+
{[%clk 0:00:04.7]} 36... Kxd5 {[%clk 0:00:57.9]} 37. Ke3 {[%clk 0:00:05.1]}
37... g5 {[%clk 0:00:55.8]} 38. Kd3 {[%clk 0:00:04.5]} 38... c6 {[%clk
0:00:55.5]} 39. Ke3 {[%clk 0:00:04.6]} 39... h5 {[%clk 0:00:55.7]} 40. Kd3
{[%clk 0:00:04.8]} 40... h4 {[%clk 0:00:56.1]} 41. Ke2 {[%clk 0:00:05.4]} 41...
Kc4 {[%clk 0:00:51.5]} 42. Kf1 {[%clk 0:00:03.8]} 42... Kb4 {[%clk 0:00:51.8]}
43. Ra1 {[%clk 0:00:02.6]} 43... Kxc5 {[%clk 0:00:52.1]} 44. Kg2 {[%clk
0:00:03.3]} 44... Kb6 {[%clk 0:00:52]} 45. Kh3 {[%clk 0:00:04]} 45... Rxa6
{[%clk 0:00:52.3]} 46. Rb1+ {[%clk 0:00:04.4]} 46... Kc7 {[%clk 0:00:52.2]} 47.
Kg4 {[%clk 0:00:05.3]} 47... c5 {[%clk 0:00:51.9]} 48. Kf5 {[%clk 0:00:05.6]}
48... c4 {[%clk 0:00:50.5]} 49. Rc1 {[%clk 0:00:03.8]} 49... Rc6 {[%clk
0:00:50.6]} 0-1

[Event "*** Titled Tuesday Blitz"]
[Site "Chess.com"]
[Date "2021.02.16"]
[Round "4"]
[White "Iskusnyh"]
[Black "kidagent"]
[Result "1-0"]
[WhiteElo "2606"]
[BlackElo "2311"]
[TimeControl "180+1"]
[EndTime "10:42:12 PST"]
[Termination "Iskusnyh won by resignation"]

1. d4 {[%clk 0:03:00.9]} 1... d5 {[%clk 0:02:59.6]} 2. c4 {[%clk 0:03:01.4]}
2... c6 {[%clk 0:03:00]} 3. Nf3 {[%clk 0:03:01.6]} 3... Nf6 {[%clk 0:03:00.3]}
4. e3 {[%clk 0:03:02.3]} 4... Bf5 {[%clk 0:02:59.3]} 5. Nc3 {[%clk 0:03:02.4]}
5... e6 {[%clk 0:02:56.8]} 6. Nh4 {[%clk 0:03:02.7]} 6... Bg4 {[%clk 0:02:56]}
7. Qb3 {[%clk 0:03:00.9]} 7... Qc8 {[%clk 0:02:56.2]} 8. h3 {[%clk 0:02:58.5]}
8... Bh5 {[%clk 0:02:55.9]} 9. g4 {[%clk 0:02:46.5]} 9... Bg6 {[%clk 0:02:56]}
10. Bd2 {[%clk 0:02:45.3]} 10... Nbd7 {[%clk 0:02:54.8]} 11. Rc1 {[%clk
0:02:41]} 11... dxc4 {[%clk 0:02:53.3]} 12. Bxc4 {[%clk 0:02:35.4]} 12... Be7
{[%clk 0:02:49.7]} 13. Nxg6 {[%clk 0:01:54.8]} 13... hxg6 {[%clk 0:02:50.6]} 14.
g5 {[%clk 0:01:42.5]} 14... Ng8 {[%clk 0:02:12.4]} 15. e4 {[%clk 0:01:36.7]}
15... Nb6 {[%clk 0:01:57.2]} 16. Be2 {[%clk 0:01:28.7]} 16... Qd8 {[%clk
0:01:55.3]} 17. h4 {[%clk 0:01:07.9]} 17... Qxd4 {[%clk 0:01:39.5]} 18. Be3
{[%clk 0:01:07.2]} 18... Qb4 {[%clk 0:01:34.4]} 19. Qxb4 {[%clk 0:00:45.8]}
19... Bxb4 {[%clk 0:01:33.2]} 20. a3 {[%clk 0:00:45.6]} 20... Bxc3+ {[%clk
0:01:24.2]} 21. Rxc3 {[%clk 0:00:44.8]} 21... Ne7 {[%clk 0:01:24.7]} 22. Rb3
{[%clk 0:00:24.2]} 22... O-O-O {[%clk 0:01:04.5]} 23. f4 {[%clk 0:00:16.2]}
23... Kc7 {[%clk 0:00:50.1]} 24. Kf2 {[%clk 0:00:15.8]} 24... f5 {[%clk
0:00:35.7]} 25. gxf6 {[%clk 0:00:12.4]} 25... gxf6 {[%clk 0:00:35.4]} 26. Rc3
{[%clk 0:00:12]} 26... Rd7 {[%clk 0:00:15.1]} 27. Rcc1 {[%clk 0:00:10.7]} 27...
Nec8 {[%clk 0:00:14.7]} 28. h5 {[%clk 0:00:10.6]} 28... Rdh7 {[%clk 0:00:14]}
29. Rcg1 {[%clk 0:00:07.5]} 29... gxh5 {[%clk 0:00:13.8]} 30. Rg6 {[%clk
0:00:07.5]} 30... f5 {[%clk 0:00:10]} 31. exf5 {[%clk 0:00:07.1]} 31... exf5
{[%clk 0:00:10.1]} 32. Bd4 {[%clk 0:00:07.4]} 32... Re8 {[%clk 0:00:09.2]} 33.
Be5+ {[%clk 0:00:07.6]} 33... Kd7 {[%clk 0:00:08.1]} 34. Rxh5 {[%clk 0:00:08]}
34... Nd5 {[%clk 0:00:08]} 35. Rxh7+ {[%clk 0:00:07.6]} 35... Re7 {[%clk
0:00:06.2]} 36. Rxe7+ {[%clk 0:00:07]} 36... Ncxe7 {[%clk 0:00:04.9]} 37. Rg7
{[%clk 0:00:07.5]} 37... Ke6 {[%clk 0:00:04.8]} 38. Bh5 {[%clk 0:00:07.5]} 1-0

[Event "*** Titled Tuesday Blitz"]
[Site "Chess.com"]
[Date "2021.02.16"]
[Round "4"]
[White "Kretov_Evgenij"]
[Black "Vasily85"]
[Result "0-1"]
[WhiteElo "2615"]
[BlackElo "2434"]
[TimeControl "180+1"]
[EndTime "10:42:12 PST"]
[Termination "Vasily85 won by resignation"]

1. d4 {[%clk 0:03:00.9]} 1... Nf6 {[%clk 0:02:47.7]} 2. c4 {[%clk 0:02:59]} 2...
e6 {[%clk 0:02:47.6]} 3. Nc3 {[%clk 0:02:59.2]} 3... Bb4 {[%clk 0:02:47.9]} 4.
Bg5 {[%clk 0:02:59.8]} 4... h6 {[%clk 0:02:44.1]} 5. Bh4 {[%clk 0:03:00.1]} 5...
c5 {[%clk 0:02:44]} 6. d5 {[%clk 0:02:59.9]} 6... d6 {[%clk 0:02:39]} 7. e3
{[%clk 0:02:59.6]} 7... O-O {[%clk 0:02:37.3]} 8. Qc2 {[%clk 0:02:56.6]} 8...
exd5 {[%clk 0:02:27.3]} 9. cxd5 {[%clk 0:02:56.7]} 9... Re8 {[%clk 0:02:11.1]}
10. Nf3 {[%clk 0:02:53.6]} 10... Bg4 {[%clk 0:02:07.7]} 11. Nd2 {[%clk
0:02:51.9]} 11... Nbd7 {[%clk 0:02:05.4]} 12. Bd3 {[%clk 0:02:48.6]} 12... Ne5
{[%clk 0:02:00.8]} 13. h3 {[%clk 0:02:47.7]} 13... Nxd3+ {[%clk 0:01:55.7]} 14.
Qxd3 {[%clk 0:02:47.3]} 14... Bh5 {[%clk 0:01:56.6]} 15. O-O {[%clk 0:02:39.2]}
15... Bg6 {[%clk 0:01:54.4]} 16. e4 {[%clk 0:02:38.6]} 16... a6 {[%clk
0:01:19.8]} 17. Rae1 {[%clk 0:02:37.9]} 17... b5 {[%clk 0:01:18.9]} 18. f4
{[%clk 0:02:37.4]} 18... c4 {[%clk 0:01:12.2]} 19. Qf3 {[%clk 0:02:37.4]} 19...
Qb6+ {[%clk 0:01:10.7]} 20. Kh1 {[%clk 0:02:33.9]} 20... Qd4 {[%clk 0:01:07.6]}
21. f5 {[%clk 0:02:30.2]} 21... Bh5 {[%clk 0:00:52.6]} 22. g4 {[%clk 0:02:28.7]}
22... Nxg4 {[%clk 0:00:46.7]} 23. hxg4 {[%clk 0:02:25.9]} 23... Qxd2 {[%clk
0:00:46.5]} 24. gxh5 {[%clk 0:02:24]} 24... Qxb2 {[%clk 0:00:46.5]} 25. Re3
{[%clk 0:02:16.5]} 25... Qc2 {[%clk 0:00:37.7]} 26. Nd1 {[%clk 0:01:46.8]} 26...
Bc5 {[%clk 0:00:35.8]} 27. Re2 {[%clk 0:01:46.9]} 27... Qd3 {[%clk 0:00:34.7]}
28. Kg2 {[%clk 0:01:34.2]} 28... Qxf3+ {[%clk 0:00:31.2]} 29. Kxf3 {[%clk
0:01:34.4]} 29... f6 {[%clk 0:00:32.1]} 30. Bf2 {[%clk 0:01:19.8]} 30... Rac8
{[%clk 0:00:26]} 31. Ne3 {[%clk 0:01:11]} 31... Bxe3 {[%clk 0:00:25.3]} 32. Bxe3
{[%clk 0:01:10.3]} 32... b4 {[%clk 0:00:25.5]} 33. Bd4 {[%clk 0:01:08.1]} 33...
Kf7 {[%clk 0:00:24.8]} 34. Rb1 {[%clk 0:01:05]} 34... a5 {[%clk 0:00:24.4]} 35.
Rc2 {[%clk 0:01:01.1]} 35... c3 {[%clk 0:00:20.7]} 36. a3 {[%clk 0:01:00.1]}
36... Rc4 {[%clk 0:00:20.6]} 37. Ke3 {[%clk 0:01:00.3]} 37... Rb8 {[%clk
0:00:17.5]} 38. Kd3 {[%clk 0:00:57.4]} 38... Rcc8 {[%clk 0:00:17]} 39. axb4
{[%clk 0:00:55.9]} 39... axb4 {[%clk 0:00:17.9]} 40. Rb3 {[%clk 0:00:55.7]}
40... Ke7 {[%clk 0:00:15.4]} 41. Ra2 {[%clk 0:00:55.6]} 41... Kf7 {[%clk
0:00:10.9]} 42. Ra7+ {[%clk 0:00:55.3]} 42... Kf8 {[%clk 0:00:11.1]} 43. Kc2
{[%clk 0:00:55.4]} 43... Rc4 {[%clk 0:00:09.7]} 44. Bxc3 {[%clk 0:00:49.6]}
44... Rbc8 {[%clk 0:00:08]} 45. Rxb4 {[%clk 0:00:44.6]} 45... Rxb4 {[%clk
0:00:07.4]} 46. Kd3 {[%clk 0:00:43.8]} 46... Rb3 {[%clk 0:00:07.4]} 47. Ra2
{[%clk 0:00:41.4]} 47... Rbxc3+ {[%clk 0:00:06.8]} 48. Kd2 {[%clk 0:00:41.6]}
48... R3c4 {[%clk 0:00:06.9]} 49. Kd3 {[%clk 0:00:41.5]} 49... Rc3+ {[%clk
0:00:07.1]} 50. Kd2 {[%clk 0:00:41.5]} 50... Rh3 {[%clk 0:00:08]} 51. Ra6 {[%clk
0:00:40.3]} 51... Rxh5 {[%clk 0:00:07.6]} 52. Rxd6 {[%clk 0:00:40.4]} 52... Rh4
{[%clk 0:00:08.5]} 53. Kd3 {[%clk 0:00:40.1]} 53... Re8 {[%clk 0:00:09]} 0-1

[Event "*** Titled Tuesday Blitz"]
[Site "Chess.com"]
[Date "2021.02.16"]
[Round "4"]
[White "Rap_woyska"]
[Black "MarcoRiehle"]
[Result "1-0"]
[WhiteElo "2525"]
[BlackElo "2685"]
[TimeControl "180+1"]
[EndTime "10:42:14 PST"]
[Termination "Rap_woyska won by resignation"]

1. c4 {[%clk 0:02:56]} 1... c5 {[%clk 0:02:59.7]} 2. Nf3 {[%clk 0:02:55.6]} 2...
Nf6 {[%clk 0:02:59.9]} 3. Nc3 {[%clk 0:02:56.3]} 3... d5 {[%clk 0:02:59.7]} 4.
cxd5 {[%clk 0:02:56.3]} 4... Nxd5 {[%clk 0:03:00.6]} 5. e3 {[%clk 0:02:57.2]}
5... Nc6 {[%clk 0:02:59.9]} 6. Bb5 {[%clk 0:02:57]} 6... e6 {[%clk 0:02:58.1]}
7. O-O {[%clk 0:02:54.7]} 7... Bd7 {[%clk 0:02:56.2]} 8. Nxd5 {[%clk 0:02:52.9]}
8... exd5 {[%clk 0:02:56]} 9. d4 {[%clk 0:02:53.2]} 9... c4 {[%clk 0:02:56.2]}
10. b3 {[%clk 0:02:52.3]} 10... a6 {[%clk 0:02:54.6]} 11. Bxc6 {[%clk
0:02:49.9]} 11... Bxc6 {[%clk 0:02:55.5]} 12. Ne5 {[%clk 0:02:45.7]} 12... cxb3
{[%clk 0:02:53.6]} 13. Nxc6 {[%clk 0:02:29.9]} 13... bxc6 {[%clk 0:02:52.3]} 14.
Qxb3 {[%clk 0:02:24.1]} 14... Bd6 {[%clk 0:02:49.1]} 15. Ba3 {[%clk 0:02:21.4]}
15... O-O {[%clk 0:02:39.8]} 16. Rfc1 {[%clk 0:02:20.1]} 16... Rb8 {[%clk
0:02:35.3]} 17. Qa4 {[%clk 0:02:20.1]} 17... Bxa3 {[%clk 0:02:35.1]} 18. Qxa3
{[%clk 0:02:21]} 18... Qb6 {[%clk 0:02:34.8]} 19. h3 {[%clk 0:02:19.3]} 19...
Rfc8 {[%clk 0:02:32.2]} 20. Rc5 {[%clk 0:02:18.5]} 20... Re8 {[%clk 0:02:23.1]}
21. Rac1 {[%clk 0:02:13.6]} 21... Re6 {[%clk 0:02:22.8]} 22. Qc3 {[%clk
0:02:10.3]} 22... h5 {[%clk 0:02:10.7]} 23. Rxc6 {[%clk 0:02:04.6]} 23... Rxc6
{[%clk 0:02:11.6]} 24. Qxc6 {[%clk 0:02:05]} 24... Qa5 {[%clk 0:02:11.6]} 25. a4
{[%clk 0:01:48]} 25... g6 {[%clk 0:02:04.8]} 26. Qd6 {[%clk 0:01:37.9]} 26...
Re8 {[%clk 0:01:50.6]} 27. Qd7 {[%clk 0:01:34.1]} 27... Rf8 {[%clk 0:01:46]} 28.
g3 {[%clk 0:01:29.7]} 28... Kg7 {[%clk 0:01:40.9]} 29. Kg2 {[%clk 0:01:27.3]}
29... Rb8 {[%clk 0:01:36.7]} 30. Rc7 {[%clk 0:01:24.5]} 30... Rf8 {[%clk
0:01:35.3]} 31. Rc5 {[%clk 0:01:24.6]} 31... Qb4 {[%clk 0:01:31]} 32. a5 {[%clk
0:01:20.2]} 32... Qb1 {[%clk 0:01:23.5]} 33. Qxd5 {[%clk 0:01:19.6]} 33... Kg8
{[%clk 0:01:04]} 34. Rc6 {[%clk 0:01:10.7]} 34... Qd3 {[%clk 0:01:01.2]} 35. Rc7
{[%clk 0:00:58.4]} 35... Kg7 {[%clk 0:00:49.8]} 36. Ra7 {[%clk 0:00:57.6]} 36...
Kg8 {[%clk 0:00:48.3]} 37. Qb7 {[%clk 0:00:57]} 37... Qf5 {[%clk 0:00:48.3]} 38.
Rxa6 {[%clk 0:00:55.6]} 38... Kg7 {[%clk 0:00:47.6]} 39. Ra8 {[%clk 0:00:48.3]}
39... Rxa8 {[%clk 0:00:38.8]} 40. Qxa8 {[%clk 0:00:49.2]} 40... Qb5 {[%clk
0:00:38.6]} 41. a6 {[%clk 0:00:47.8]} 41... h4 {[%clk 0:00:39]} 42. g4 {[%clk
0:00:47.4]} 42... Qd3 {[%clk 0:00:30.7]} 43. a7 {[%clk 0:00:46.5]} 43... Qa6
{[%clk 0:00:30.4]} 44. Qb8 {[%clk 0:00:42.2]} 44... Qc6+ {[%clk 0:00:30.1]} 45.
Kh2 {[%clk 0:00:41.5]} 45... Qf3 {[%clk 0:00:28.4]} 46. a8=Q {[%clk 0:00:35.7]}
46... Qxf2+ {[%clk 0:00:28.7]} 47. Qg2 {[%clk 0:00:36.4]} 47... Qe1 {[%clk
0:00:29.1]} 48. Qe5+ {[%clk 0:00:36]} 48... Kh7 {[%clk 0:00:29.4]} 49. Qf6
{[%clk 0:00:35]} 49... Qxe3 {[%clk 0:00:24.9]} 50. Qxf7+ {[%clk 0:00:34.9]}
50... Kh6 {[%clk 0:00:24.7]} 51. g5+ {[%clk 0:00:33.4]} 51... Qxg5 {[%clk
0:00:22.8]} 52. Qf8+ {[%clk 0:00:33.7]} 52... Kh7 {[%clk 0:00:21.5]} 53. Qf7+
{[%clk 0:00:34.2]} 53... Kh8 {[%clk 0:00:20.9]} 54. Qe8+ {[%clk 0:00:33.8]}
54... Kg7 {[%clk 0:00:20.1]} 55. Qxg5 {[%clk 0:00:33.8]} 1-0

[Event "*** Titled Tuesday Blitz"]
[Site "Chess.com"]
[Date "2021.02.16"]
[Round "4"]
[White "elextranjero00"]
[Black "eljanov"]
[Result "1-0"]
[WhiteElo "2637"]
[BlackElo "2839"]
[TimeControl "180+1"]
[EndTime "10:42:17 PST"]
[Termination "elextranjero00 won on time"]

1. d4 {[%clk 0:03:00.9]} 1... Nf6 {[%clk 0:02:59.4]} 2. c4 {[%clk 0:03:00]} 2...
e6 {[%clk 0:02:59.7]} 3. Nc3 {[%clk 0:02:55.8]} 3... Bb4 {[%clk 0:02:59.5]} 4.
e3 {[%clk 0:02:56]} 4... O-O {[%clk 0:02:58.9]} 5. Bd3 {[%clk 0:02:54.3]} 5...
d5 {[%clk 0:02:57.5]} 6. Nf3 {[%clk 0:02:50.5]} 6... b6 {[%clk 0:02:57.6]} 7.
O-O {[%clk 0:02:48.2]} 7... Ba6 {[%clk 0:02:57.3]} 8. cxd5 {[%clk 0:02:42.8]}
8... Bxd3 {[%clk 0:02:53.3]} 9. Qxd3 {[%clk 0:02:43.2]} 9... exd5 {[%clk
0:02:53.9]} 10. Bd2 {[%clk 0:02:39.1]} 10... Re8 {[%clk 0:02:41.4]} 11. Rac1
{[%clk 0:02:32.5]} 11... c6 {[%clk 0:02:35.5]} 12. Ne5 {[%clk 0:02:19.2]} 12...
a5 {[%clk 0:02:01.6]} 13. a3 {[%clk 0:01:58.7]} 13... Bf8 {[%clk 0:01:44.9]} 14.
f4 {[%clk 0:01:37.8]} 14... Ra7 {[%clk 0:01:32.3]} 15. Be1 {[%clk 0:01:32.5]}
15... Qd6 {[%clk 0:01:12.3]} 16. Bg3 {[%clk 0:00:52.8]} 16... Rae7 {[%clk
0:00:52.6]} 17. f5 {[%clk 0:00:36.6]} 17... Qd8 {[%clk 0:00:52.4]} 18. Bh4
{[%clk 0:00:30.5]} 18... c5 {[%clk 0:00:40.8]} 19. Bxf6 {[%clk 0:00:24.3]} 19...
gxf6 {[%clk 0:00:40.7]} 20. Ng4 {[%clk 0:00:24.9]} 20... Rd7 {[%clk 0:00:36]}
21. Rf3 {[%clk 0:00:19]} 21... h5 {[%clk 0:00:29.6]} 22. Nf2 {[%clk 0:00:18.6]}
22... Bh6 {[%clk 0:00:27.6]} 23. Rg3+ {[%clk 0:00:18.3]} 23... Kf8 {[%clk
0:00:28]} 24. Rf1 {[%clk 0:00:18.1]} 24... Nc6 {[%clk 0:00:26.8]} 25. dxc5
{[%clk 0:00:12.7]} 25... bxc5 {[%clk 0:00:25.1]} 26. Ncd1 {[%clk 0:00:10.3]}
26... d4 {[%clk 0:00:23.7]} 27. e4 {[%clk 0:00:10.1]} 27... Ne5 {[%clk
0:00:16.8]} 28. Qe2 {[%clk 0:00:10.3]} 28... Bf4 {[%clk 0:00:11.9]} 29. Rh3
{[%clk 0:00:10.2]} 29... Ke7 {[%clk 0:00:12.3]} 30. Nd3 {[%clk 0:00:07.5]} 30...
Nxd3 {[%clk 0:00:11.9]} 31. Qxd3 {[%clk 0:00:08.4]} 31... Be5 {[%clk 0:00:11.9]}
32. Qc4 {[%clk 0:00:08]} 32... Qb6 {[%clk 0:00:11.2]} 33. Nf2 {[%clk 0:00:05.9]}
33... Qxb2 {[%clk 0:00:06.7]} 34. Qxc5+ {[%clk 0:00:06.3]} 34... Bd6 {[%clk
0:00:05.9]} 35. Qxa5 {[%clk 0:00:06.3]} 35... d3 {[%clk 0:00:03.5]} 36. Nxd3
{[%clk 0:00:06]} 36... Qc2 {[%clk 0:00:01.3]} 37. Qb5 {[%clk 0:00:05.1]} 37...
Rg8 {[%clk 0:00:01.4]} 38. Rf2 {[%clk 0:00:05]} 1-0

[Event "*** Titled Tuesday Blitz"]
[Site "Chess.com"]
[Date "2021.02.16"]
[Round "4"]
[White "Smirnov_Pavel"]
[Black "Buffy7"]
[Result "0-1"]
[WhiteElo "2885"]
[BlackElo "2649"]
[TimeControl "180+1"]
[EndTime "10:42:17 PST"]
[Termination "Buffy7 won on time"]

1. d4 {[%clk 0:03:00.9]} 1... Nf6 {[%clk 0:02:58.8]} 2. c4 {[%clk 0:03:00.4]}
2... g6 {[%clk 0:02:59.3]} 3. Nf3 {[%clk 0:03:01.3]} 3... Bg7 {[%clk 0:02:59]}
4. g3 {[%clk 0:03:02.2]} 4... d5 {[%clk 0:02:57.3]} 5. Bg2 {[%clk 0:03:03.1]}
5... dxc4 {[%clk 0:02:57.1]} 6. O-O {[%clk 0:03:01.2]} 6... O-O {[%clk
0:02:56.5]} 7. Na3 {[%clk 0:03:01.2]} 7... c3 {[%clk 0:02:56.8]} 8. bxc3 {[%clk
0:03:02.1]} 8... c5 {[%clk 0:02:57.3]} 9. Re1 {[%clk 0:03:02]} 9... Nd5 {[%clk
0:02:47.4]} 10. Bb2 {[%clk 0:02:59]} 10... Nc6 {[%clk 0:02:31.4]} 11. e4 {[%clk
0:02:58.4]} 11... Nb6 {[%clk 0:02:31.3]} 12. Rb1 {[%clk 0:02:58.6]} 12... Bg4
{[%clk 0:02:21.1]} 13. d5 {[%clk 0:02:53.4]} 13... Na5 {[%clk 0:02:17.1]} 14. c4
{[%clk 0:02:50.9]} 14... Bxb2 {[%clk 0:02:03]} 15. Rxb2 {[%clk 0:02:51.8]} 15...
Nbxc4 {[%clk 0:02:03.5]} 16. Nxc4 {[%clk 0:02:48.9]} 16... Nxc4 {[%clk
0:02:04.4]} 17. Rxb7 {[%clk 0:02:49.2]} 17... Nb6 {[%clk 0:02:03.9]} 18. Qc1
{[%clk 0:00:53.6]} 18... Bc8 {[%clk 0:02:03.3]} 19. Qh6 {[%clk 0:00:51.3]} 19...
f6 {[%clk 0:02:02.8]} 20. Rxb6 {[%clk 0:00:31.8]} 20... axb6 {[%clk 0:01:55.2]}
21. e5 {[%clk 0:00:31.5]} 21... Rxa2 {[%clk 0:01:34.2]} 22. d6 {[%clk
0:00:29.7]} 22... exd6 {[%clk 0:00:55.7]} 23. Nh4 {[%clk 0:00:28.9]} 23... Be6
{[%clk 0:00:32.6]} 24. Nxg6 {[%clk 0:00:25.7]} 24... Rf7 {[%clk 0:00:32.8]} 25.
Nf4 {[%clk 0:00:22.7]} 25... dxe5 {[%clk 0:00:26.6]} 26. Nxe6 {[%clk 0:00:21.1]}
26... Qd2 {[%clk 0:00:26.9]} 27. Qxd2 {[%clk 0:00:20.5]} 27... Rxd2 {[%clk
0:00:27.8]} 28. f4 {[%clk 0:00:15.9]} 28... Re7 {[%clk 0:00:18.5]} 29. Bh3
{[%clk 0:00:15.7]} 29... exf4 {[%clk 0:00:17.3]} 30. gxf4 {[%clk 0:00:16.6]}
30... c4 {[%clk 0:00:17.5]} 31. Re3 {[%clk 0:00:11.1]} 31... b5 {[%clk 0:00:16]}
32. Rg3+ {[%clk 0:00:10]} 32... Kh8 {[%clk 0:00:16.1]} 33. Bf5 {[%clk
0:00:04.6]} 33... b4 {[%clk 0:00:15.3]} 34. Re3 {[%clk 0:00:02.8]} 34... c3
{[%clk 0:00:13.6]} 35. Kf1 {[%clk 0:00:01.4]} 35... c2 {[%clk 0:00:12.4]} 36.
Bxc2 {[%clk 0:00:01.8]} 36... Rxc2 {[%clk 0:00:13.3]} 37. f5 {[%clk 0:00:02.5]}
37... Rc5 {[%clk 0:00:12.6]} 38. Rf3 {[%clk 0:00:02]} 38... Rb5 {[%clk
0:00:10.7]} 39. Rd3 {[%clk 0:00:01.1]} 39... Re8 {[%clk 0:00:09.8]} 0-1

[Event "*** Titled Tuesday Blitz"]
[Site "Chess.com"]
[Date "2021.02.16"]
[Round "4"]
[White "JQuiroga18"]
[Black "EdmundPlayer"]
[Result "1-0"]
[WhiteElo "2415"]
[BlackElo "2182"]
[TimeControl "180+1"]
[EndTime "10:42:17 PST"]
[Termination "JQuiroga18 won on time"]

1. e4 {[%clk 0:03:00.9]} 1... c6 {[%clk 0:03:00.1]} 2. Nf3 {[%clk 0:02:59.7]}
2... d5 {[%clk 0:02:59.8]} 3. Nc3 {[%clk 0:03:00.6]} 3... Bg4 {[%clk 0:02:56.6]}
4. h3 {[%clk 0:02:59.8]} 4... Bxf3 {[%clk 0:02:49.6]} 5. Qxf3 {[%clk 0:02:59.6]}
5... dxe4 {[%clk 0:02:47.1]} 6. Nxe4 {[%clk 0:02:58.9]} 6... Nf6 {[%clk
0:02:45.8]} 7. d3 {[%clk 0:02:58]} 7... Nbd7 {[%clk 0:02:44]} 8. g3 {[%clk
0:02:57.8]} 8... Nxe4 {[%clk 0:02:42.8]} 9. dxe4 {[%clk 0:02:50.6]} 9... e5
{[%clk 0:02:36.9]} 10. Bc4 {[%clk 0:02:46.8]} 10... Qf6 {[%clk 0:02:24.6]} 11.
Qb3 {[%clk 0:02:29.5]} 11... Nc5 {[%clk 0:02:18]} 12. Qe3 {[%clk 0:02:27.7]}
12... b5 {[%clk 0:02:03.9]} 13. Be2 {[%clk 0:02:23.8]} 13... Ne6 {[%clk
0:02:02.8]} 14. O-O {[%clk 0:02:17.5]} 14... Bc5 {[%clk 0:01:56.2]} 15. Qc3
{[%clk 0:02:11]} 15... O-O {[%clk 0:01:13.9]} 16. Be3 {[%clk 0:02:04.1]} 16...
Bd4 {[%clk 0:00:46.1]} 17. Bxd4 {[%clk 0:01:49]} 17... Nxd4 {[%clk 0:00:44.9]}
18. Bd1 {[%clk 0:01:49.1]} 18... Rfd8 {[%clk 0:00:38.9]} 19. Qe3 {[%clk
0:01:46.2]} 19... Qe6 {[%clk 0:00:33.9]} 20. c3 {[%clk 0:01:43.8]} 20... Qxh3
{[%clk 0:00:21.4]} 21. cxd4 {[%clk 0:01:42.8]} 21... Rd6 {[%clk 0:00:21.4]} 22.
Bf3 {[%clk 0:01:03.3]} 22... exd4 {[%clk 0:00:20.7]} 23. Qf4 {[%clk 0:00:54.3]}
23... Rf6 {[%clk 0:00:19.9]} 24. Qg4 {[%clk 0:00:53.8]} 24... Qh6 {[%clk
0:00:17.6]} 25. Rfd1 {[%clk 0:00:49.1]} 25... c5 {[%clk 0:00:12.8]} 26. e5
{[%clk 0:00:47.9]} 26... Rg6 {[%clk 0:00:12.6]} 27. Qh5 {[%clk 0:00:44.7]} 27...
Re8 {[%clk 0:00:10]} 28. Qxh6 {[%clk 0:00:43.8]} 28... Rxh6 {[%clk 0:00:10.9]}
29. Re1 {[%clk 0:00:42.7]} 29... Rhe6 {[%clk 0:00:10.3]} 30. a4 {[%clk
0:00:30.8]} 30... b4 {[%clk 0:00:08.7]} 31. Kf1 {[%clk 0:00:24.7]} 31... Rxe5
{[%clk 0:00:08.9]} 32. Rxe5 {[%clk 0:00:24.4]} 32... Rxe5 {[%clk 0:00:09.8]} 33.
Re1 {[%clk 0:00:22.7]} 33... f6 {[%clk 0:00:08.4]} 34. Rxe5 {[%clk 0:00:20.9]}
34... fxe5 {[%clk 0:00:09.3]} 35. Bd5+ {[%clk 0:00:20.7]} 35... Kf8 {[%clk
0:00:09.6]} 36. Ke2 {[%clk 0:00:19.6]} 36... Ke7 {[%clk 0:00:10.2]} 37. Kd3
{[%clk 0:00:19.6]} 37... Kd6 {[%clk 0:00:08.8]} 38. Kc4 {[%clk 0:00:19.6]} 38...
h6 {[%clk 0:00:06.4]} 39. Be4 {[%clk 0:00:18.1]} 39... g5 {[%clk 0:00:06.3]} 40.
g4 {[%clk 0:00:18.1]} 40... a5 {[%clk 0:00:03.7]} 41. b3 {[%clk 0:00:17.7]} 1-0